[Event "XIV American Continental-ch 2019"]
[Site "Sao Paulo"]
[Date "2019.07.13"]
[Round "11.8"]
[White "Santos, Marcus Vinicius More"]
[Black "Fier, Alexandr"]
[Result "0-1"]
[ECO "D82"]
[WhiteElo "2354"]
[BlackElo "2547"]
[Annotator "ChessBase"]
[PlyCount "86"]
[EventDate "2019.07.05"]
[EventType "swiss"]
[EventCountry "BRA"]
[SourceTitle "playchess.com"]
[Source "ChessBase"]
[SourceQuality "1"]
[TimeControl "40/5400+30:1800+30"]

1. d4 {[%emt 0:03:16]} Nf6 {[%emt 0:00:00]} 2. c4 {[%emt 0:00:09]} g6 {[%emt 0:00:00]} 3. Nc3 {[%emt 0:00:11]} d5 {[%emt 0:00:00]} 4. Bf4 {[%emt 0:00:26]} Bg7 {[%emt 0:00:00]} 5. e3 {[%emt 0:00:10]} c5 {[%emt 0:00:00]} 6. dxc5 {[%emt 0:00:16]} Qa5 {[%emt 0:00:00]} 7. Rc1 {[%emt 0:00:22]} Ne4 {[%emt 0:00:00]} 8. cxd5 {[%emt 0:00:18]} Nxc3 {[%emt 0:00:00]} 9. Qd2 {[%emt 0:00:10]} Qxa2 {[%emt 0:00:01]} 10. Rxc3 {[%emt 0:00:11]} O-O {[%emt 0:00:03]} 11. Bc4 {[%emt 0:08:42]} Qa1+ {[%emt 0:00:06]} 12. Rc1 {[%emt 0:02:10]} Qxb2 {[%emt 0:00:04]} 13. Qxb2 {[%emt 0:01:06]} Bxb2 {[%emt 0:00:04]} 14. Rb1 {[%emt 0:00:15]} Bc3+ {[%emt 0:00:05]} 15. Ke2 {[%emt 0:00:10]} Nd7 {[%emt 0:00:40]} 16. c6 {[%emt 0:23:35]} Nb6 {[%emt 0:00:34]} 17. Bd3 {[%emt 0:02:36]} Rd8 {[%emt 0:03:33]} 18. Nf3 {[%emt 0:05:16]} Rxd5 {[%emt 0:02:51]} 19. Rhc1 {[%emt 0:02:12]} Rc5 {[%emt 0:02:25]} 20. Rb3 {[%emt 0:08:34]} Bb4 {[%emt 0:00:06]} 21. Rd1 {[%emt 0:13:43]} a5 {[%emt 0:01:58]} 22. Be5 {[%emt 0:16:05]} Rxc6 {[%emt 0:03:34]} 23. Bb5 {[%emt 0:02:55]} Be6 {[%emt 0:00:08]} 24. Rbd3 {[%emt 0:00:13]} Rcc8 {[%emt 0:00:16]} 25. Bd4 {[%emt 0:02:45]} Bc4 {[%emt 0:00:22]} 26. Bxc4 {[%emt 0:00:27]} Nxc4 {[%emt 0:00:03]} 27. Ba1 {[%emt 0:00:38]} f6 {[%emt 0:02:17]} 28. g4 {[%emt 0:00:09]} Bd6 {[%emt 0:01:54]} 29. g5 {[%emt 0:00:23]} f5 {[%emt 0:00:06]} 30. h4 {[%emt 0:00:18]} b5 {[%emt 0:00:50]} 31. h5 {[%emt 0:00:35]} b4 {[%emt 0:02:32]} 32. hxg6 {[%emt 0:01:09]} hxg6 {[%emt 0:00:03]} 33. Rh1 {[%emt 0:00:09]} a4 {[%emt 0:00:05]} 34. Rh8+ {[%emt 0:00:51]} Kf7 {[%emt 0:00:03]} 35. Rh7+ {[%emt 0:00:08]} Ke6 {[%emt 0:00:52]} 36. Rg7 {[%emt 0:02:46]} Rg8 {[%emt 0:00:36]} 37. Nd4+ {[%emt 0:01:20]} Kd7 {[%emt 0:00:04]} 38. Rh7 {[%emt 0:00:15]} Rab8 {[%emt 0:01:02]} 39. Nf3 {[%emt 0:00:54]} b3 {[%emt 0:00:26]} 40. Bf6 {[%emt 0:02:57]} Rge8 {[%emt 0:00:44]} 41. Ne5+ {[%emt 0:09:49]} Nxe5 {[%emt 0:00:14]} 42. Bxe5 {[%emt 0:00:06]} Rb6 {[%emt 0:00:10]} 43. Bb2 {[%emt 0:02:48]} Ra8 {[%emt 0:01:07]} 0-1

[Event "XIV American Continental-ch 2019"]
[Site "Sao Paulo"]
[Date "2019.07.13"]
[Round "11.9"]
[White "Escalante Ramirez, Brian Sebasti"]
[Black "Hungaski, Robert"]
[Result "1/2-1/2"]
[ECO "B13"]
[WhiteElo "2447"]
[BlackElo "2488"]
[Annotator "ChessBase"]
[PlyCount "157"]
[EventDate "2019.07.05"]
[EventType "swiss"]
[EventCountry "BRA"]
[SourceTitle "playchess.com"]
[Source "ChessBase"]
[SourceQuality "1"]
[TimeControl "40/5400+30:1800+30"]

1. e4 {[%emt 0:01:55]} c6 {[%emt 0:04:16]} 2. d4 {[%emt 0:00:08]} d5 {[%emt 0:00:07]} 3. exd5 {[%emt 0:00:06]} cxd5 {[%emt 0:00:06]} 4. Bd3 {[%emt 0:00:05]} Nc6 {[%emt 0:00:49]} 5. c3 {[%emt 0:00:03]} Nf6 {[%emt 0:04:11]} 6. Bf4 {[%emt 0:00:03]} Bg4 {[%emt 0:00:18]} 7. Qb3 {[%emt 0:00:22]} Qd7 {[%emt 0:12:10]} 8. Nd2 {[%emt 0:01:13]} e6 {[%emt 0:00:07]} 9. Ngf3 {[%emt 0:01:50]} Bd6 {[%emt 0:03:47]} 10. Bxd6 {[%emt 0:17:18]} Qxd6 {[%emt 0:00:14]} 11. O-O {[%emt 0:06:48]} O-O {[%emt 0:02:41]} 12. Rae1 {[%emt 0:04:08]} Nd7 {[%emt 0:14:02]} 13. Qc2 {[%emt 0:05:28]} h6 {[%emt 0:07:04]} 14. Re3 {[%emt 0:06:21]} Rfc8 {[%emt 0:02:27]} 15. Qb1 {[%emt 0:01:52]} Bxf3 {[%emt 0:03:52]} 16. Rxf3 {[%emt 0:02:55]} e5 {[%emt 0:09:45]} 17. dxe5 {[%emt 0:02:13]} Ndxe5 {[%emt 0:05:46]} 18. Rg3 {[%emt 0:00:02]} Re8 {[%emt 0:02:39]} 19. Nb3 {[%emt 0:01:49]} Rad8 {[%emt 0:00:29]} 20. Rd1 {[%emt 0:00:38]} Qf6 {[%emt 0:01:59]} 21. Bf1 {[%emt 0:06:27]} h5 {[%emt 0:04:30]} 22. h3 {[%emt 0:01:07]} g6 {[%emt 0:05:00]} 23. Qc1 {[%emt 0:01:50]} Kg7 {[%emt 0:03:14]} 24. Rg5 {[%emt 0:18:09]} Rd6 {[%emt 0:01:36]} 25. Nd4 {[%emt 0:00:42]} Nxd4 {[%emt 0:02:12]} 26. Rxd4 {[%emt 0:00:01]} Red8 {[%emt 0:00:24]} 27. Rh4 {[%emt 0:06:21]} Kf8 {[%emt 0:03:04]} 28. Qe3 {[%emt 0:03:17]} Nc6 {[%emt 0:00:09]} 29. Rf4 {[%emt 0:03:23]} Qe7 {[%emt 0:00:53]} 30. Qg3 {[%emt 0:00:34]} Rf6 {[%emt 0:01:08]} 31. Bd3 {[%emt 0:03:44]} Rxf4 {[%emt 0:00:21]} 32. Qxf4 {[%emt 0:00:01]} Kg7 {[%emt 0:01:17]} 33. Qg3 {[%emt 0:00:53]} Qd6 {[%emt 0:02:02]} 34. Bb5 {[%emt 0:03:28]} Qxg3 {[%emt 0:00:34]} 35. Rxg3 {[%emt 0:00:01]} Ne5 {[%emt 0:00:27]} 36. Re3 {[%emt 0:00:23]} Kf6 {[%emt 0:00:05]} 37. Bf1 {[%emt 0:01:56]} d4 {[%emt 0:02:14]} 38. cxd4 {[%emt 0:00:12]} Rxd4 {[%emt 0:00:05]} 39. Re1 {[%emt 0:01:12]} Rd2 {[%emt 0:00:42]} 40. Rb1 {[%emt 0:00:21]} Nd3 {[%emt 0:01:59]} 41. Bxd3 {[%emt 0:30:38]} Rxd3 {[%emt 0:30:07]} 42. Kf1 {[%emt 0:00:00]} Rd2 {[%emt 0:00:00]} 43. a4 {[%emt 0:00:00]} b6 {[%emt 0:00:00]} 44. b3 {[%emt 0:00:00]} Ke6 {[%emt 0:00:00]} 45. Rc1 {[%emt 0:00:00]} Kd6 {[%emt 0:00:00]} 46. Rc3 {[%emt 0:00:00]} a5 {[%emt 0:00:00]} 47. Rf3 {[%emt 0:00:00]} Ke7 {[%emt 0:00:00]} 48. Re3+ {[%emt 0:00:00]} Kd7 {[%emt 0:00:00]} 49. Rf3 {[%emt 0:00:00]} f5 {[%emt 0:00:00]} 50. Rg3 {[%emt 0:00:00]} Rb2 {[%emt 0:00:00]} 51. h4 {[%emt 0:00:00]} f4 {[%emt 0:00:00]} 52. Rxg6 {[%emt 0:00:00]} Rxb3 {[%emt 0:00:00]} 53. g4 {[%emt 0:00:00]} f3 {[%emt 0:00:00]} 54. Ke1 {[%emt 0:00:00]} Rb4 {[%emt 0:00:00]} 55. gxh5 {[%emt 0:00:00]} Kc7 {[%emt 0:00:00]} 56. Rg7+ {[%emt 0:00:46]} Kc6 {[%emt 0:00:00]} 57. Rg6+ {[%emt 0:00:02]} Kb7 {[%emt 0:00:00]} 58. Rg7+ {[%emt 0:00:51]} Ka6 {[%emt 0:00:00]} 59. h6 {[%emt 0:00:06]} Rxa4 {[%emt 0:00:00]} 60. h5 {[%emt 0:02:02]} Re4+ {[%emt 0:00:00]} 61. Kd2 {[%emt 0:00:10]} Re5 {[%emt 0:00:00]} 62. h7 {[%emt 0:01:35]} Rxh5 {[%emt 0:00:05]} 63. Kc3 {[%emt 0:02:28]} Rh4 {[%emt 0:05:57]} 64. Rf7 {[%emt 0:00:23]} Rh5 {[%emt 0:02:18]} 65. Kd3 {[%emt 0:01:22]} a4 {[%emt 0:01:16]} 66. Kc3 {[%emt 0:01:48]} b5 {[%emt 0:01:30]} 67. Kb4 {[%emt 0:00:44]} Rh4+ {[%emt 0:00:08]} 68. Kc5 {[%emt 0:01:13]} Rc4+ {[%emt 0:01:32]} 69. Kd5 {[%emt 0:00:09]} Rc8 {[%emt 0:01:26]} 70. Rxf3 {[%emt 0:00:27]} b4 {[%emt 0:00:53]} 71. Rg3 {[%emt 0:00:28]} Rh8 {[%emt 0:00:55]} 72. Kc4 {[%emt 0:00:18]} b3 {[%emt 0:00:31]} 73. Kb4 {[%emt 0:01:01]} b2 {[%emt 0:00:31]} 74. Rg1 {[%emt 0:00:02]} Rxh7 {[%emt 0:00:27]} 75. Kxa4 {[%emt 0:00:03]} Rf7 {[%emt 0:00:26]} 76. Rb1 {[%emt 0:00:05]} Rxf2 {[%emt 0:00:08]} 77. Kb3 {[%emt 0:00:03]} Kb5 {[%emt 0:00:04]} 78. Rxb2 {[%emt 0:00:04]} Rxb2+ {[%emt 0:00:06]} 79. Kxb2 {[%emt 0:00:04]} 1/2-1/2

[Event "XIV American Continental-ch 2019"]
[Site "Sao Paulo"]
[Date "2019.07.13"]
[Round "11.10"]
[White "Hambleton, Aman"]
[Black "Quintiliano Pinto, Renato R."]
[Result "1-0"]
[ECO "E39"]
[WhiteElo "2487"]
[BlackElo "2443"]
[Annotator "ChessBase"]
[PlyCount "43"]
[EventDate "2019.07.05"]
[EventType "swiss"]
[EventCountry "BRA"]
[SourceTitle "playchess.com"]
[Source "ChessBase"]
[SourceQuality "1"]
[TimeControl "40/5400+30:1800+30"]

1. c4 {[%emt 0:00:00]} e6 {[%emt 0:07:02]} 2. d4 {[%emt 0:00:43]} Nf6 {[%emt 0:02:20]} 3. Nc3 {[%emt 0:01:38]} Bb4 {[%emt 0:00:05]} 4. Qc2 {[%emt 0:04:23]} c5 {[%emt 0:04:11]} 5. dxc5 {[%emt 0:00:58]} O-O {[%emt 0:00:26]} 6. a3 {[%emt 0:02:13]} Bxc5 {[%emt 0:00:38]} 7. Nf3 {[%emt 0:00:59]} Qb6 {[%emt 0:02:31]} 8. e4 {[%emt 0:08:25]} Ng4 {[%emt 0:16:22]} 9. Na4 {[%emt 0:02:11]} Qa5+ {[%emt 0:04:19]} 10. b4 {[%emt 0:32:13]} Bxf2+ {[%emt 0:00:11]} 11. Qxf2 {[%emt 0:00:52]} Qxa4 {[%emt 0:00:06]} 12. Qg3 {[%emt 0:00:40]} f5 {[%emt 0:13:24]} 13. exf5 {[%emt 0:05:26]} exf5 {[%emt 0:01:46]} 14. Bd3 {[%emt 0:03:10]} d5 {[%emt 0:13:42]} 15. O-O {[%emt 0:09:37]} Qb3 {[%emt 0:01:08]} 16. Bb1 {[%emt 0:00:46]} Qc3 {[%emt 0:09:06]} 17. Ra2 {[%emt 0:01:43]} dxc4 {[%emt 0:00:46]} 18. h3 {[%emt 0:02:15]} Nf6 {[%emt 0:04:13]} 19. Re2 {[%emt 0:04:39]} Nc6 {[%emt 0:13:01]} 20. Bb2 {[%emt 0:09:02]} Nd4 {[%emt 0:00:18]} 21. Re7 {[%emt 0:00:59]} Nxf3+ {[%emt 0:02:10]} 22. Rxf3 {[%emt 0:00:41]} 1-0

[Event "XIV American Continental-ch 2019"]
[Site "Sao Paulo"]
[Date "2019.07.13"]
[Round "11.11"]
[White "Santiago, Yago De Moura"]
[Black "Cadilhac, Igor Tokuichi Kikuch"]
[Result "1-0"]
[ECO "A13"]
[WhiteElo "2473"]
[BlackElo "2291"]
[Annotator "ChessBase"]
[PlyCount "79"]
[EventDate "2019.07.05"]
[EventType "swiss"]
[EventCountry "BRA"]
[SourceTitle "playchess.com"]
[Source "ChessBase"]
[SourceQuality "1"]
[TimeControl "40/5400+30:1800+30"]

1. c4 {[%emt 0:05:36]} e6 {[%emt 0:00:33]} 2. g3 {[%emt 0:00:18]} Nf6 {[%emt 0:01:31]} 3. Bg2 {[%emt 0:00:10]} c5 {[%emt 0:03:43]} 4. Nf3 {[%emt 0:00:19]} Nc6 {[%emt 0:00:04]} 5. O-O {[%emt 0:00:12]} d5 {[%emt 0:00:11]} 6. cxd5 {[%emt 0:02:14]} exd5 {[%emt 0:00:25]} 7. d4 {[%emt 0:00:11]} Bg4 {[%emt 0:01:32]} 8. Ne5 {[%emt 0:06:53]} Be6 {[%emt 0:09:05]} 9. Nxc6 {[%emt 0:01:03]} bxc6 {[%emt 0:01:20]} 10. dxc5 {[%emt 0:00:13]} Bxc5 {[%emt 0:00:15]} 11. Nc3 {[%emt 0:00:07]} O-O {[%emt 0:01:19]} 12. Na4 {[%emt 0:00:11]} Be7 {[%emt 0:08:43]} 13. Be3 {[%emt 0:01:18]} Qa5 {[%emt 0:01:45]} 14. Rc1 {[%emt 0:03:11]} Rac8 {[%emt 0:02:22]} 15. Bc5 {[%emt 0:04:06]} Rfe8 {[%emt 0:07:08]} 16. a3 Nd7 17. Bxe7 {[%emt 0:12:56]} Rxe7 {[%emt 0:00:32]} 18. Re1 {[%emt 0:04:18]} Nb6 {[%emt 0:04:07]} 19. Nc5 {[%emt 0:01:37]} Nc4 {[%emt 0:01:30]} 20. Qd4 {[%emt 0:01:45]} f5 {[%emt 0:24:44]} 21. b3 {[%emt 0:05:04]} Nd6 {[%emt 0:06:39]} 22. Qe5 {[%emt 0:20:02]} Nf7 {[%emt 0:01:23]} 23. Qf4 {[%emt 0:00:15]} g6 {[%emt 0:02:14]} 24. b4 {[%emt 0:01:25]} Qd8 {[%emt 0:01:14]} 25. Red1 {[%emt 0:10:00]} Qe8 26. Nb3 Bd7 {[%emt 0:06:33]} 27. Nd4 {[%emt 0:02:10]} Nd8 {[%emt 0:04:03]} 28. Rc5 {[%emt 0:01:10]} Ne6 {[%emt 0:06:09]} 29. Nxe6 {[%emt 0:00:07]} Rxe6 30. e3 {[%emt 0:00:11]} a6 {[%emt 0:00:36]} 31. Rdc1 {[%emt 0:00:40]} Ra8 {[%emt 0:00:21]} 32. Qd4 {[%emt 0:00:22]} h6 {[%emt 0:02:51]} 33. a4 {[%emt 0:00:52]} Kh7 {[%emt 0:01:01]} 34. b5 {[%emt 0:00:08]} axb5 {[%emt 0:00:33]} 35. axb5 {[%emt 0:00:02]} cxb5 {[%emt 0:01:22]} 36. Rxd5 {[%emt 0:01:23]} Rd8 {[%emt 0:00:15]} 37. Rc7 {[%emt 0:00:30]} Re7 {[%emt 0:00:01]} 38. Bf1 {[%emt 0:00:34]} Qf7 {[%emt 0:02:17]} 39. Bxb5 {[%emt 0:00:44]} Rb8 {[%emt 0:00:18]} 40. Rdxd7 {[%emt 0:00:15]} 1-0

[Event "XIV American Continental-ch 2019"]
[Site "Sao Paulo"]
[Date "2019.07.13"]
[Round "11.13"]
[White "Lima, Darcy"]
[Black "Umetsubo, Cesar Hidemitsu"]
[Result "1-0"]
[ECO "E12"]
[WhiteElo "2543"]
[BlackElo "2406"]
[Annotator "ChessBase"]
[PlyCount "101"]
[EventDate "2019.07.05"]
[EventType "swiss"]
[EventCountry "BRA"]
[SourceTitle "playchess.com"]
[Source "ChessBase"]
[SourceQuality "1"]
[TimeControl "40/5400+30:1800+30"]

1. d4 {[%emt 0:07:58]} Nf6 2. c4 {[%emt 0:00:10]} e6 {[%emt 0:00:01]} 3. Nf3 {[%emt 0:01:17]} b6 {[%emt 0:00:07]} 4. Bf4 {[%emt 0:00:15]} Bb7 {[%emt 0:02:31]} 5. e3 {[%emt 0:01:30]} Be7 {[%emt 0:02:59]} 6. Nc3 {[%emt 0:01:07]} Nh5 {[%emt 0:02:37]} 7. Bg3 {[%emt 0:00:33]} Nxg3 {[%emt 0:06:20]} 8. hxg3 {[%emt 0:00:05]} d5 {[%emt 0:02:35]} 9. cxd5 {[%emt 0:03:27]} exd5 {[%emt 0:01:01]} 10. Ne5 {[%emt 0:00:25]} c6 {[%emt 0:07:51]} 11. Qh5 {[%emt 0:14:38]} g6 {[%emt 0:01:05]} 12. Qh6 {[%emt 0:00:05]} Bg5 {[%emt 0:19:22]} 13. Qg7 {[%emt 0:05:06]} Qf6 {[%emt 0:00:38]} 14. Rxh7 {[%emt 0:00:45]} Qxg7 {[%emt 0:00:09]} 15. Rxg7 {[%emt 0:00:04]} Ba6 {[%emt 0:00:10]} 16. Nxf7 {[%emt 0:41:00]} Kf8 {[%emt 0:03:04]} 17. Nxg5 {[%emt 0:03:28]} Kxg7 {[%emt 0:00:20]} 18. Bxa6 {[%emt 0:01:07]} Nxa6 {[%emt 0:00:07]} 19. Ke2 {[%emt 0:00:23]} Rh5 {[%emt 0:12:27]} 20. Nf3 {[%emt 0:02:58]} Rah8 {[%emt 0:00:22]} 21. Ne5 {[%emt 0:01:01]} Nb8 {[%emt 0:01:09]} 22. Rc1 {[%emt 0:00:45]} Rh1 {[%emt 0:00:18]} 23. Rc2 {[%emt 0:00:43]} Ra1 {[%emt 0:03:00]} 24. g4 {[%emt 0:03:11]} Rhh1 {[%emt 0:06:06]} 25. g5 {[%emt 0:00:25]} Rhc1 {[%emt 0:02:45]} 26. Rd2 {[%emt 0:00:58]} b5 {[%emt 0:00:36]} 27. a3 {[%emt 0:01:29]} a5 {[%emt 0:00:15]} 28. Nd3 {[%emt 0:00:56]} Rg1 {[%emt 0:02:05]} 29. g3 {[%emt 0:01:35]} Na6 {[%emt 0:03:50]} 30. Rc2 {[%emt 0:03:16]} Nc7 {[%emt 0:04:38]} 31. Ne5 {[%emt 0:01:12]} b4 {[%emt 0:02:58]} 32. Na4 {[%emt 0:00:04]} Rge1+ {[%emt 0:01:38]} 33. Kf3 {[%emt 0:00:16]} Rec1 {[%emt 0:01:03]} 34. Rxc1 {[%emt 0:01:00]} Rxc1 {[%emt 0:00:02]} 35. axb4 {[%emt 0:00:03]} axb4 {[%emt 0:00:18]} 36. Nc5 {[%emt 0:00:03]} b3 {[%emt 0:07:35]} 37. Nxb3 {[%emt 0:00:17]} Rc2 {[%emt 0:00:06]} 38. Nc5 {[%emt 0:00:07]} Rxb2 {[%emt 0:00:19]} 39. Nxc6 {[%emt 0:00:05]} Nb5 {[%emt 0:00:37]} 40. Ne5 {[%emt 0:02:08]} Nc7 {[%emt 0:01:56]} 41. Ng4 {[%emt 0:06:16]} Rb8 {[%emt 0:06:36]} 42. Kf4 {[%emt 0:00:43]} Re8 {[%emt 0:00:23]} 43. Nf6 {[%emt 0:00:43]} Re7 {[%emt 0:00:36]} 44. Kg4 {[%emt 0:00:52]} Rf7 {[%emt 0:00:33]} 45. Nd3 {[%emt 0:05:21]} Rf8 {[%emt 0:03:32]} 46. Nf4 {[%emt 0:01:54]} Rd8 {[%emt 0:00:22]} 47. N6xd5 {[%emt 0:01:49]} Rxd5 {[%emt 0:00:25]} 48. Nxd5 {[%emt 0:00:05]} Nxd5 {[%emt 0:00:03]} 49. e4 {[%emt 0:00:04]} Nc3 {[%emt 0:01:02]} 50. Kf4 {[%emt 0:00:17]} Kf7 {[%emt 0:00:20]} 51. Ke5 {[%emt 0:00:13]} 1-0

[Event "XIV American Continental-ch 2019"]
[Site "Sao Paulo"]
[Date "2019.07.13"]
[Round "11.14"]
[White "Fernandez Reyes, Lisandro"]
[Black "Krysa, Leandro"]
[Result "1/2-1/2"]
[ECO "A05"]
[WhiteElo "2378"]
[BlackElo "2517"]
[Annotator "ChessBase"]
[PlyCount "120"]
[EventDate "2019.07.05"]
[EventType "swiss"]
[EventCountry "BRA"]
[SourceTitle "playchess.com"]
[Source "ChessBase"]
[SourceQuality "1"]
[TimeControl "40/5400+30:1800+30"]

1. Nf3 {[%emt 0:04:27]} Nf6 {[%emt 0:00:07]} 2. b3 {[%emt 0:00:15]} d5 {[%emt 0:00:16]} 3. Bb2 {[%emt 0:00:12]} Bf5 {[%emt 0:00:19]} 4. g3 {[%emt 0:00:37]} e6 {[%emt 0:00:26]} 5. Bg2 {[%emt 0:00:27]} h6 {[%emt 0:00:14]} 6. O-O {[%emt 0:00:24]} Be7 {[%emt 0:01:14]} 7. d3 {[%emt 0:00:21]} O-O {[%emt 0:00:54]} 8. Nbd2 {[%emt 0:00:15]} c6 {[%emt 0:01:15]} 9. Re1 {[%emt 0:00:46]} a5 {[%emt 0:00:22]} 10. a4 {[%emt 0:00:33]} Na6 {[%emt 0:00:22]} 11. e4 {[%emt 0:02:11]} Bh7 {[%emt 0:00:18]} 12. e5 {[%emt 0:00:15]} Nd7 {[%emt 0:00:21]} 13. Nd4 {[%emt 0:00:14]} Nb4 {[%emt 0:02:36]} 14. N2f3 {[%emt 0:07:02]} Qb6 {[%emt 0:18:33]} 15. Bf1 {[%emt 0:12:04]} Rac8 {[%emt 0:04:00]} 16. c3 {[%emt 0:03:49]} Na6 {[%emt 0:00:13]} 17. Bc1 {[%emt 0:02:22]} Nc7 {[%emt 0:04:27]} 18. h4 {[%emt 0:10:24]} c5 {[%emt 0:11:39]} 19. Ne2 {[%emt 0:01:09]} f6 {[%emt 0:05:34]} 20. Bf4 {[%emt 0:05:21]} d4 {[%emt 0:14:27]} 21. c4 {[%emt 0:08:00]} Bf5 {[%emt 0:02:32]} 22. exf6 {[%emt 0:01:12]} Bxf6 {[%emt 0:01:59]} 23. Nh2 {[%emt 0:05:13]} e5 {[%emt 0:03:50]} 24. Bc1 {[%emt 0:00:24]} Na6 {[%emt 0:07:02]} 25. g4 {[%emt 0:03:08]} Bh7 {[%emt 0:00:54]} 26. g5 {[%emt 0:01:21]} hxg5 {[%emt 0:00:45]} 27. hxg5 {[%emt 0:07:33]} Bxg5 {[%emt 0:02:04]} 28. Bxg5 {[%emt 0:00:30]} Qg6 {[%emt 0:00:08]} 29. f4 {[%emt 0:00:27]} exf4 {[%emt 0:00:48]} 30. Nf3 {[%emt 0:00:19]} Ne5 {[%emt 0:06:03]} 31. Nexd4 {[%emt 0:00:26]} Rce8 {[%emt 0:00:05]} 32. Ra2 {[%emt 0:07:18]} cxd4 {[%emt 0:01:06]} 33. Nxe5 {[%emt 0:00:09]} Qxg5+ {[%emt 0:01:31]} 34. Rg2 {[%emt 0:00:04]} Qf5 {[%emt 0:02:03]} 35. Nf3 {[%emt 0:09:34]} Re3 {[%emt 0:00:52]} 36. Rxe3 {[%emt 0:00:22]} dxe3 {[%emt 0:03:29]} 37. d4 {[%emt 0:00:24]} Nb4 {[%emt 0:01:16]} 38. d5 {[%emt 0:01:04]} b6 {[%emt 0:01:13]} 39. d6 {[%emt 0:02:56]} Nd3 {[%emt 0:03:25]} 40. Rg5 {[%emt 0:04:26]} Qe4 {[%emt 0:00:35]} 41. d7 {[%emt 0:08:05]} Rd8 {[%emt 0:04:03]} 42. Bxd3 {[%emt 0:05:46]} Qxd3 {[%emt 0:13:17]} 43. Qxd3 {[%emt 0:00:15]} Bxd3 {[%emt 0:00:03]} 44. Ne5 {[%emt 0:00:22]} Be2 {[%emt 0:04:03]} 45. Kg2 {[%emt 0:01:07]} f3+ {[%emt 0:01:46]} 46. Nxf3 {[%emt 0:00:26]} Rxd7 {[%emt 0:00:04]} 47. Re5 {[%emt 0:02:25]} Rd3 {[%emt 0:01:21]} 48. Ng5 {[%emt 0:00:57]} Bh5 {[%emt 0:01:29]} 49. c5 {[%emt 0:01:55]} e2 {[%emt 0:04:27]} 50. cxb6 {[%emt 0:01:30]} Rxb3 {[%emt 0:00:34]} 51. Kf2 {[%emt 0:04:21]} Rxb6 {[%emt 0:01:52]} 52. Ne4 {[%emt 0:01:19]} Rb1 {[%emt 0:01:46]} 53. Ng3 {[%emt 0:00:13]} Bg4 {[%emt 0:01:11]} 54. Re4 {[%emt 0:00:06]} Bd7 {[%emt 0:01:14]} 55. Nxe2 {[%emt 0:00:17]} Ra1 {[%emt 0:00:12]} 56. Nc3 {[%emt 0:00:12]} Ra3 {[%emt 0:00:10]} 57. Rc4 {[%emt 0:00:23]} Kf7 {[%emt 0:00:14]} 58. Rc5 {[%emt 0:01:28]} Ke6 {[%emt 0:00:32]} 59. Ke1 {[%emt 0:01:15]} g5 {[%emt 0:00:43]} 60. Kd2 {[%emt 0:00:51]} g4 {[%emt 0:00:48]} 1/2-1/2

[Event "XIV American Continental-ch 2019"]
[Site "Sao Paulo"]
[Date "2019.07.13"]
[Round "11.15"]
[White "Hernandez Sanchez, Jairo Andres"]
[Black "Barbosa, Evandro Amorim"]
[Result "1-0"]
[ECO "B40"]
[WhiteElo "2387"]
[BlackElo "2506"]
[Annotator "ChessBase"]
[PlyCount "117"]
[EventDate "2019.07.05"]
[EventType "swiss"]
[EventCountry "BRA"]
[SourceTitle "playchess.com"]
[Source "ChessBase"]
[SourceQuality "1"]
[TimeControl "40/5400+30:1800+30"]

1. e4 {[%emt 0:03:05]} c5 {[%emt 0:03:59]} 2. Nf3 {[%emt 0:00:16]} e6 {[%emt 0:00:33]} 3. c4 {[%emt 0:00:58]} Nc6 {[%emt 0:00:33]} 4. Nc3 {[%emt 0:00:57]} Nf6 {[%emt 0:00:38]} 5. Be2 {[%emt 0:00:23]} d5 {[%emt 0:05:23]} 6. exd5 {[%emt 0:01:30]} exd5 {[%emt 0:00:08]} 7. d4 {[%emt 0:00:09]} Be6 {[%emt 0:00:46]} 8. Be3 {[%emt 0:03:14]} cxd4 {[%emt 0:02:17]} 9. Nxd4 {[%emt 0:00:40]} Nxd4 {[%emt 0:00:19]} 10. Bxd4 {[%emt 0:00:13]} dxc4 {[%emt 0:00:39]} 11. O-O {[%emt 0:03:52]} Qa5 {[%emt 0:14:07]} 12. Bxf6 {[%emt 0:10:23]} gxf6 {[%emt 0:00:28]} 13. Re1 {[%emt 0:05:23]} Rd8 {[%emt 0:07:17]} 14. Qc2 {[%emt 0:01:32]} Be7 {[%emt 0:03:19]} 15. Qe4 {[%emt 0:03:35]} Qb4 {[%emt 0:09:44]} 16. Bg4 {[%emt 0:15:38]} Rd6 {[%emt 0:02:13]} 17. Re2 {[%emt 0:08:56]} Kf8 {[%emt 0:21:16]} 18. Rae1 {[%emt 0:02:12]} Rc6 {[%emt 0:07:31]} 19. Qf4 {[%emt 0:04:48]} h5 {[%emt 0:01:28]} 20. Bf3 {[%emt 0:10:29]} Qd6 {[%emt 0:02:21]} 21. Qe3 {[%emt 0:01:56]} Rb6 {[%emt 0:00:44]} 22. a4 {[%emt 0:03:17]} Qc5 {[%emt 0:02:01]} 23. Qf4 {[%emt 0:01:52]} Qd6 {[%emt 0:02:08]} 24. Qe3 {[%emt 0:00:34]} Qc5 {[%emt 0:00:13]} 25. Qf4 {[%emt 0:02:49]} Qd6 {[%emt 0:03:38]} 26. Qc1 {[%emt 0:02:35]} Kg7 {[%emt 0:00:41]} 27. Rd1 {[%emt 0:05:14]} Qc5 {[%emt 0:02:18]} 28. Ne4 {[%emt 0:01:45]} Qa5 {[%emt 0:01:11]} 29. Qf4 {[%emt 0:00:43]} Qe5 {[%emt 0:00:31]} 30. Qc1 {[%emt 0:00:53]} h4 {[%emt 0:00:37]} 31. h3 {[%emt 0:01:36]} Rb4 {[%emt 0:03:02]} 32. Nc3 {[%emt 0:00:58]} Qg5 {[%emt 0:00:26]} 33. Qc2 {[%emt 0:00:12]} Bf5 {[%emt 0:01:40]} 34. Be4 {[%emt 0:00:43]} Bxh3 {[%emt 0:01:32]} 35. Nd5 {[%emt 0:02:13]} Bxg2 {[%emt 0:00:57]} 36. Bxg2 {[%emt 0:00:05]} h3 {[%emt 0:00:09]} 37. Qe4 {[%emt 0:00:32]} hxg2 {[%emt 0:00:43]} 38. Qxg2 {[%emt 0:00:05]} Qxg2+ {[%emt 0:00:44]} 39. Kxg2 {[%emt 0:00:01]} Bc5 {[%emt 0:00:40]} 40. Nxb4 {[%emt 0:00:50]} Bxb4 {[%emt 0:00:04]} 41. Re4 {[%emt 0:32:03]} Rc8 {[%emt 0:31:00]} 42. b3 {[%emt 0:00:00]} a5 {[%emt 0:00:00]} 43. Rg4+ {[%emt 0:00:00]} Kf8 {[%emt 0:00:00]} 44. Rxc4 {[%emt 0:00:00]} Bc5 {[%emt 0:00:00]} 45. b4 {[%emt 0:00:00]} axb4 {[%emt 0:00:00]} 46. a5 {[%emt 0:00:00]} b3 {[%emt 0:00:00]} 47. Rb1 {[%emt 0:00:00]} Rc7 {[%emt 0:00:00]} 48. Rxb3 {[%emt 0:00:00]} b6 {[%emt 0:00:00]} 49. Rb5 {[%emt 0:00:00]} f5 {[%emt 0:00:00]} 50. Rc1 {[%emt 0:00:00]} Rc6 {[%emt 0:00:00]} 51. Kf3 {[%emt 0:00:00]} Rd6 {[%emt 0:00:00]} 52. Rcb1 {[%emt 0:00:00]} Rd2 {[%emt 0:00:00]} 53. axb6 {[%emt 0:00:00]} Rxf2+ {[%emt 0:00:00]} 54. Kg3 {[%emt 0:00:00]} f4+ {[%emt 0:00:00]} 55. Kg4 {[%emt 0:00:00]} Bd6 {[%emt 0:00:00]} 56. Rd5 {[%emt 0:00:00]} Rg2+ {[%emt 0:00:00]} 57. Kf3 {[%emt 0:00:00]} Rg3+ {[%emt 0:00:00]} 58. Kf2 {[%emt 0:00:00]} Ke7 {[%emt 0:00:00]} 59. Rxd6 {[%emt 0:00:00]} 1-0